Cogmind - Beta 16.1 @@@ ROGUE MODE // 2026.04.20 @ 21:51:47 Player: star Result: Destroyed by SF-B5V(z) with Makeshift Hammer Performance ------------- Evolutions (3) 1500 Regions Visited (11) 2200 Robots Destroyed (123) 615 Value Destroyed (3796) 3796 Prototype IDs (26) 520 Alien Tech Used (0) 0 Bonus (1694) 1694 TOTAL SCORE: 10325 Bonus ------- High Alert Combat Kills 169 Follower Combat Kills 525 Entered Garrisons 200 Used RIF Installer 500 Aligned with FarCom 300 Cogmind --------- Core Integrity 0/700 Matter 300/300 Energy 845/1300 System Corruption 5% Temperature Cool (31) Movement Treading (160) Location -7/Zion Parts ------- > --- POWER (1) -------- (None) > --- PROPULSION (4) --- Spiked Medium Treads Spiked Medium Treads > --- UTILITY (5) ------ Improved Cooling System Large Storage Unit Experimental Energy Well Experimental Energy Well Core Analyzer > --- WEAPON (3) ------- Makeshift Laser > --- INVENTORY (15) --- Nuclear Core Makeshift Power Source Improved Cooling System Improved Core Shielding AWS/Gauss Slug Cannon Blade Saw Blade Saw Peak State ------------ > --- POWER ------------ Improved Deuterium Engine > --- PROPULSION ------- Spiked Medium Treads Spiked Medium Treads Spiked Medium Treads > --- UTILITY ---------- Improved Cooling System Large Storage Unit Experimental Energy Well Experimental Energy Well Core Analyzer > --- WEAPON ----------- Pulse Rifle AWS/Gauss > --- INVENTORY -------- Nuclear Core Improved Cooling System Improved Core Shielding Field Laser Slug Cannon Blade Saw Blade Saw [Rating: 67] Favorites ----------- Power Improved Deuterium Engine Engine Improved Deuterium Engine Power Core Nuclear Core Propulsion Aluminum Leg Treads Spiked Medium Treads Leg Aluminum Leg Wheel Armored Huge Wheel Flight Unit Surge Thruster Utility Large Storage Unit Device Improved Heat Sink Storage Large Storage Unit Processor Core Analyzer Protection Improved Weapon Shielding Weapon Precision Beam Rifle Energy Gun Precision Beam Rifle Ballistic Gun AWS/Gauss Ballistic Cannon Improved Light Cannon Launcher Mini Grenade Launcher Slashing Weapon Blade Saw Build | -11 -10 -10 -10 -9 -8 -7 -7 -7 -7 -7 -7 ------- Run | Yrd Mat Min Exi Min Mat Fac Gar Fac Low Low Zio Slots Evolved 6 | . . . . . 4 2 . . . . . Power . | . . . . . . . . . . . . Propulsion 2 | . . . . . 1 1 . . . . . Utility 3 | . . . . . 2 1 . . . . . Weapon 1 | . . . . . 1 . . . . . . Parts Attached 74 | 6 1 . . 4 16 1 23 4 2 2 15 Power 11 | 1 . . . . 1 . 3 . 1 1 4 Engine 8 | 1 . . . . . . 2 . 1 1 3 Core 3 | . . . . . 1 . 1 . . . 1 Reactor . | . . . . . . . . . . . . Propulsion 20 | 2 . . . . 6 . 9 . . . 3 Treads 6 | . . . . . . . 3 . . . 3 Leg 7 | 2 . . . . 5 . . . . . . Wheel 3 | . . . . . 1 . 2 . . . . Hover . | . . . . . . . . . . . . Flight 4 | . . . . . . . 4 . . . . Utility 20 | 1 1 . . 1 3 1 7 3 . 1 2 Device 9 | . 1 . . 1 2 . 4 1 . . . Storage 4 | 1 . . . . 1 . . . . . 2 Processor 2 | . . . . . . . . 2 . . . Hackware . | . . . . . . . . . . . . Protection 5 | . . . . . . 1 3 . . 1 . Artifact . | . . . . . . . . . . . . Weapon 23 | 2 . . . 3 6 . 4 1 1 . 6 Energy Gun 16 | 2 . . . 2 4 . 2 1 . . 5 Energy Cannon . | . . . . . . . . . . . . Ballistic Gun 1 | . . . . . 1 . . . . . . Ballistic Cannon 3 | . . . . 1 1 . . . . . 1 Launcher 1 | . . . . . . . . . 1 . . Special Weapon . | . . . . . . . . . . . . Impact Weapon . | . . . . . . . . . . . . Slashing Weapon 2 | . . . . . . . 2 . . . . Piercing Weapon . | . . . . . . . . . . . . Special Melee Weapon . | . . . . . . . . . . . . Unidentified Prototypes 3 | . . . . . 1 . . 1 . . 1 Corrupted Parts 1 | . . . . . 1 . . . . . . System Corruption 6 | . . . . . 6 . . . . . . Parts Lost 43 | . . . . . 10 . 15 . 1 8 9 Power 9 | . . . . . 1 . 3 . 1 1 3 Propulsion 14 | . . . . . 6 . 5 . . 2 1 Utility 9 | . . . . . . . 6 . . 3 . Weapon 11 | . . . . . 3 . 1 . . 2 5 Highest Loss Streak 7 | . . . . . 4 . 7 . 1 7 4 To Critical Strikes 2 | . . . . . . . . . . 2 . Average Backups 9 | . 1 1 1 5 7 8 10 11 12 13 9 Power . | . . . . . 1 1 . . 1 1 1 Propulsion . | . . . . . . . . 1 . . . Utility 2 | . . . . . 1 2 3 2 3 4 2 Weapon 5 | . 1 1 1 4 5 5 5 7 7 6 4 Tool/Special . | . . . . . . . . . . . . Unused Backups 9 | . . . 1 1 2 . . . . 1 4 Power 2 | . . . . . 1 . . . . . 1 Propulsion . | . . . . . . . . . . . . Utility 3 | . . . . 1 . . . . . . 2 Weapon 3 | . . . 1 . 1 . . . . 1 . Tool/Special 1 | . . . . . . . . . . . 1 Average Slot Usage (%) 78 | . 91 100 100 100 81 81 76 84 83 60 64 Engine 6 | . 14 14 14 14 4 . 6 7 6 3 2 Treads 3 | . . . . . . . 6 . . . 13 Leg 7 | . 28 28 28 28 20 7 . . . . . Wheel 3 | . . . . . . 7 3 15 15 7 . Flight 2 | . . . . . . . 7 . . . . Device 11 | . 6 14 14 14 17 23 12 9 7 7 7 Storage 9 | . 14 14 14 14 9 7 7 7 7 7 14 Processor 4 | . . . . . . . . 10 15 11 7 Protection 3 | . . . . . . 4 8 9 7 3 . Energy Gun 18 | . 28 28 28 25 16 23 20 15 14 12 11 Ballistic Gun 1 | . . . . . . . . . . 3 4 Ballistic Cannon 2 | . . . . 2 8 . . 7 7 1 . Peak Build Rating 67 | 6 7 7 10 13 29 32 50 50 51 53 67 Average Rating 32 | 3 6 7 7 11 20 30 35 49 49 41 47 On Entrance 23 | . 6 7 7 8 13 28 32 49 50 50 33 Avg Prop Armor Cover (%) 8 | . . . . . 8 8 8 . . . . Naked Turns . | . . . . . . . . . . . . Heaviest Build 49 | 14 15 15 15 18 40 38 44 44 42 45 49 Greatest Support 84 | 20 20 20 20 20 30 10 56 56 56 56 84 Greatest Overweight (x) 12 | 4 . . . . 3 3 12 . . 11 11 Average Overweight (x) . | 1 . . . . 1 3 1 . . 1 2 Largest Inventory Capacity 15 | 8 8 8 8 8 15 15 15 15 15 15 15 Average Capacity 13 | 7 8 8 8 8 14 15 15 15 15 15 14 Most Carried 15 | 1 1 1 5 8 10 11 15 15 14 15 14 Average Carried 9 | . 1 1 1 6 8 9 11 12 13 13 9 Final Capacity 15 | 8 8 8 8 8 15 15 15 15 15 15 15 Final Carried 14 | 1 1 1 3 8 8 11 14 12 14 13 9 Class Distribution -------------------- 31% | Scavenger-Skirmisher 24% | Gunner 21% | Mutant 11% | Scavenger-Gunner 5% | Scavenger-Mutant 3% | Skirmisher Dominant Class ---------------- Mutant | -10/Materials Mutant | -10/Mines Mutant | -10/Exiles Mutant | -9/Mines Scavenger-Skirmisher | -8/Materials Scavenger-Skirmisher | -7/Factory Scavenger-Skirmisher | -7/Garrison Scavenger-Gunner | -7/Factory Gunner | -7/Lower Caves Gunner | -7/Lower Caves Scavenger-Gunner | -7/Zion Resources | -11 -10 -10 -10 -9 -8 -7 -7 -7 -7 -7 -7 ----------- Run | Yrd Mat Min Exi Min Mat Fac Gar Fac Low Low Zio Matter Collected 1994 | 189 77 . . 40 598 . 378 123 128 182 279 Remotely . | . . . . . . . . . . . . Salvage Created 4417 | . 114 . . 98 1137 . 1243 179 193 607 846 Parts 218 | . 8 . . 4 51 . 45 8 9 19 74 Haulers Intercepted 5 | . . . . . 3 . . 2 . . . Recyclers Shooed 1 | . . . . . 1 . . . . . . Parts Field Recycled . | . . . . . . . . . . . . Retrieved Matter . | . . . . . . . . . . . . Parts Self-Destructed 35 | . . . . . . . . . 11 24 . Prevented . | . . . . . . . . . . . . Parts Restored . | . . . . . . . . . . . . Kills | -11 -10 -10 -10 -9 -8 -7 -7 -7 -7 -7 -7 ------- Run | Yrd Mat Min Exi Min Mat Fac Gar Fac Low Low Zio Combat Hostiles Destroyed 82 | . 5 . . 2 24 . 24 2 7 13 5 Melee 1 | . . . . . . . 1 . . . . Guns 52 | . 5 . . 2 12 . 18 1 3 6 5 Cannons 14 | . . . . . 12 . . 1 1 . . AOE 8 | . . . . . . . . . 3 5 . Classes Destroyed 15 | . 2 . . 1 5 . 3 . . 2 2 Worker 3 | . . . . . 2 . . 1 . . . Hauler 5 | . . . . . 3 . . 2 . . . Recycler 2 | . . . . . 2 . . . . . . Swarmer 22 | . 3 . . . 4 . 9 . 2 4 . Cutter 3 | . . . . . . . 3 . . . . Grunt 31 | . 2 . . 1 15 . 3 2 3 5 . Brawler 1 | . . . . . . . . . . 1 . Duelist 3 | . . . . . 1 . . . 1 1 . Sentry 9 | . . . . 1 2 . 5 . . 1 . Specialist 1 | . . . . . . . 1 . . . . Hunter 4 | . . . . . 2 . 2 . . . . Programmer 2 | . . . . . . . 1 . 1 . . Behemoth 1 | . . . . . . . . . . 1 . Zionite 31 | . . . . . . . . . . . 31 Packrat 1 | . . . . . . . . . . 1 . Thug 1 | . . . . . . . . . . . 1 Savage 1 | . . . . . . . . . . . 1 Mutant 1 | . . . . . . . . . . . 1 Best Kill Streak 19 | . 4 . . 1 8 . 6 2 4 6 19 Combat Bots Only 7 | . 4 . . 1 6 . 7 1 4 6 1 Max Kills in Single Turn 2 | . 1 . . 1 2 . 1 2 1 2 2 Gunslinging . | . . . . . . . . . . . . Exploded 2 | . . . . . . . . . 1 2 . Melee 1 | . . . . . . . 1 . . . . Uniques/NPCs Destroyed 2 | . . . . . . . . . . . 2 NK-0LA (-7/Zion) Imprinter (-7/Zion) Combat | -11 -10 -10 -10 -9 -8 -7 -7 -7 -7 -7 -7 -------- Run | Yrd Mat Min Exi Min Mat Fac Gar Fac Low Low Zio Hostile Shots Fired 588 | . 23 . . 12 96 . 235 . 10 52 160 Missed 181 | . 8 . . 7 21 . 74 . 1 13 57 Hits 407 | . 15 . . 5 75 . 161 . 9 39 103 Melee 14 | . . . . . . . 3 . . 4 7 Projectile 393 | . 15 . . 5 75 . 158 . 9 35 96 AOE 3 | . . . . . . . 3 . . . . Critical Strikes 18 | . . . . . 5 . 7 . . 2 4 Actively Blocked 1 | . . . . . . . 1 . . . . Damage Taken 5949 | . 131 . . 76 1161 . 1900 . 143 775 1763 Core 984 | . 19 . . 27 207 . 383 . 1 101 246 Absorbed by Shields . | . . . . . . . . . . . . Redirected to Shielding 424 | . . . . . . . 272 . 9 143 . Core Remaining (%) 81 | 100 . . . 81 62 . . . . . . Volleys Fired 276 | . 11 . . 32 60 . 57 15 13 35 53 Largest 3 | . 2 . . 2 3 . 3 3 3 3 3 Hottest 202 | . 100 . . 100 183 . 202 155 155 183 201 Shots Fired 709 | . 22 . . 40 165 . 151 44 31 78 178 Gun 574 | . 22 . . 16 111 . 144 28 18 65 170 Cannon 120 | . . . . 24 54 . 7 16 9 2 8 Launcher 15 | . . . . . . . . . 4 11 . Special . | . . . . . . . . . . . . Kinetic 226 | . . . . 24 60 . 20 16 9 12 85 Thermal 463 | . 22 . . 16 105 . 131 28 18 55 88 Explosive 15 | . . . . . . . . . 4 11 . Electromagnetic 5 | . . . . . . . . . . . 5 Robot Hit Streak 42 | . 3 . . 10 16 . 24 8 5 29 42 Robot Miss Streak 5 | . 3 . . 2 4 . 5 1 3 1 3 Penetration Max . | . . . . . . . . . . . . Secondary Targets 13 | . . . . . 2 . 4 . . 3 4 Max Gunslinging Chain 2 | . . . . . 1 . 1 . . 1 2 Autonomous 107 | . . . . . 6 . 13 . . 10 78 Shots Hit Robots 523 | . 11 . . 12 128 . 138 27 14 64 129 Core Hits 258 | 1 7 . . 4 92 . 55 8 14 29 48 Critical Kills 1 | . . . . . . . . . . . 1 Critical Parts Destroyed 1 | . . . . . . . . . . . 1 Critical Strikes 41 | . . . . 1 9 . 13 3 . 6 9 Burn 33 | . . . . 1 9 . 9 2 . 6 6 Destroy 3 | . . . . . . . . . . . 3 Blast 1 | . . . . . . . . 1 . . . Sever 4 | . . . . . . . 4 . . . . Melee Attacks 33 | . . . . . . . 33 . . . . Impact . | . . . . . . . . . . . . Slashing 33 | . . . . . . . 33 . . . . Piercing . | . . . . . . . . . . . . Sneak Attacks . | . . . . . . . . . . . . Combat Hostiles . | . . . . . . . . . . . . Follow-up Attacks 5 | . . . . . . . 5 . . . . Damage Inflicted 11032 | 3 139 . . 155 2269 . 2774 551 563 1753 2825 Guns 8062 | . 139 . . 155 1357 . 2120 360 146 1136 2649 Cannons 1376 | . . . . . 912 . . 191 97 . 176 Explosions 937 | . . . . . . . . . 320 617 . Melee 654 | . . . . . . . 654 . . . . Ramming 3 | 3 . . . . . . . . . . . Kinetic 3988 | . . . . . 1056 . 355 191 97 299 1990 Thermal 5393 | . 139 . . 155 1213 . 1765 360 146 837 778 Explosive 937 | . . . . . . . . . 320 617 . Electromagnetic 57 | . . . . . . . . . . . 57 Impact . | . . . . . . . . . . . . Slashing 654 | . . . . . . . 654 . . . . Piercing . | . . . . . . . . . . . . Highest Corruption 10 | . . . . . 6 . 3 3 3 10 10 Average Corruption 4 | . . . . . 6 . 2 3 3 6 5 Corruption Purged . | . . . . . . . . . . . . Corruption Blocked . | . . . . . . . . . . . . Effects 97 | . . . . . 18 . 19 7 10 29 14 Message Errors 19 | . . . . . 3 . 2 2 2 10 . Matter Fused 22 | . . . . . 4 . 5 1 3 6 3 Heat Flow Errors 16 | . . . . . 2 . 4 1 2 6 1 Energy Discharges 14 | . . . . . 1 . 1 1 2 3 6 Parts Rejected 2 | . . . . . 1 . 1 . . . . Parts Fused 1 | . . . . . . . . . . 1 . Data Loss (minor) 14 | . . . . . 4 . 4 1 1 2 2 Data Loss (major) 3 | . . . . . 1 . 1 . . . 1 Misfires 3 | . . . . . 1 . . 1 . 1 . Alerts 2 | . . . . . . . 1 . . . 1 Weapon Failures 1 | . . . . . 1 . . . . . . Overload Shots . | . . . . . . . . . . . . Overflow Damage 9 | . . . . . . . . . . . 9 Projectiles 9 | . . . . . . . . . . . 9 Explosions . | . . . . . . . . . . . . Melee . | . . . . . . . . . . . . Knockbacks 25 | . . . . . 25 . . . . . . Impact . | . . . . . . . . . . . . Kinetic 23 | . . . . . 23 . . . . . . Secondary 2 | . . . . . 2 . . . . . . Self-Inflicted Damage 5 | . . . . . . . . . 5 . . Shots 1 | . . . . . . . . . 1 . . Rammed . | . . . . . . . . . . . . Targets Rammed 2 | 1 . . . . 1 . . . . . . Kicked 2 | 1 . . . . 1 . . . . . . Crushed . | . . . . . . . . . . . . Highest Temperature 447 | . 84 . . 72 194 . 447 376 236 231 117 Average Temperature 71 | . 29 . . 31 64 . 102 71 88 63 33 Received Heat Transfer 1401 | . 30 . . 36 558 . 420 . 27 186 144 Effects 3 | . . . . . . . 3 . . . . Interference 3 | . . . . . . . 3 . . . . Siege Activations . | . . . . . . . . . . . . Martial Activations . | . . . . . . . . . . . . Shielding Activations . | . . . . . . . . . . . . Robots Disrupted . | . . . . . . . . . . . . Combat Hostiles . | . . . . . . . . . . . . Robots Corrupted . | . . . . . . . . . . . . Combat Hostiles . | . . . . . . . . . . . . Parts Fried . | . . . . . . . . . . . . Impact Corruptions . | . . . . . . . . . . . . Robots Melted 8 | . . . . . . . 5 . . 2 1 Combat Hostiles 7 | . . . . . . . 5 . . 2 . Parts Melted 35 | . 1 . . 2 7 . 18 . . 3 4 Heat Transferred 14368 | . 407 . . 518 3552 . 4454 925 296 2220 1996 Parts Sabotaged . | . . . . . . . . . . . . Parts Stolen . | . . . . . . . . . . . . Parts Stripped . | . . . . . . . . . . . . Power Chain Reactions . | . . . . . . . . . . . . Alert | -11 -10 -10 -10 -9 -8 -7 -7 -7 -7 -7 -7 ------- Run | Yrd Mat Min Exi Min Mat Fac Gar Fac Low Low Zio Maximum Alert Level 3 | . . . . . 1 . 3 2 . . . Low Security (%) 49 | 100 100 100 . 100 77 100 17 . . . . Level 1 13 | . . . . . 22 . 7 82 . . . Level 2 27 | . . . . . . . 56 17 . . . Level 3 8 | . . . . . . . 18 . . . . Level 4 . | . . . . . . . . . . . . Level 5 . | . . . . . . . . . . . . High Security . | . . . . . . . . . . . . Max Security . | . . . . . . . . . . . . Peak Influence 776 | . 80 27 . 76 338 147 776 412 . . . Initial 407 | . . 27 . . . 147 105 407 . . . Average 292 | . 23 22 . 14 117 138 504 375 . . . Influence Increases 2502 | . 110 . . 118 723 24 921 115 201 290 . Destroy 0b10 Robot/C 1800 | . 100 . . 100 480 . 620 80 160 260 . Destroy 0b10 Robot/NC 65 | . . . . . 35 . 15 15 . . . Destroy Leader 220 | . 10 . . 10 96 . 30 14 30 30 . Allied During Kill 70 | . . . . 6 2 . 46 5 11 . . Successful Hack 24 | . . . . . . 24 . . . . . Disable Machine 30 | . . . . . 30 . . . . . . Anti-Garrison Action 150 | . . . . . . . 150 . . . . Destroy Structure 23 | . . . . 2 5 . 15 1 . . . Partial Spotted 30 | . . . . . 30 . . . . . . Lose Combat Pursuer 90 | . . . . . 45 . 45 . . . . Influence Decreases 2502 | . 40 53 17 118 399 197 296 489 358 535 . Entered New Map 849 | . . 43 17 . . 177 46 369 150 47 . Time Decay 1190 | . 40 10 . 118 296 20 . 120 198 388 . Lost Part 330 | . . . . . 90 . 150 . 10 80 . Lost Ally 133 | . . . . . 13 . 100 . . 20 . Squads Dispatched 4 | . . . . . 2 1 . . . 1 . Investigation 1 | . . . . . . 1 . . . . . Extermination . | . . . . . . . . . . . . Reinforcement 2 | . . . . . 2 . . . . . . Assault 1 | . . . . . . . . . . 1 . Garrison . | . . . . . . . . . . . . Intercept . | . . . . . . . . . . . . Searches Triggered . | . . . . . . . . . . . . Construction Impeded 1 | . . . . . 1 . . . . . . Haulers Reinforced . | . . . . . . . . . . . . Active Scanning Responses . | . . . . . . . . . . . . Cargo Convoy Interrupts . | . . . . . . . . . . . . Stealth | -11 -10 -10 -10 -9 -8 -7 -7 -7 -7 -7 -7 --------- Run | Yrd Mat Min Exi Min Mat Fac Gar Fac Low Low Zio Distress Signals 4 | . 1 . . . 3 . . . . . . Communications Jammed . | . . . . . . . . . . . . Distress Signals . | . . . . . . . . . . . . Times Spotted 152 | . 9 . . 4 35 1 34 3 8 14 44 Peak Tracking Total 7 | . 4 . . 3 7 1 5 3 4 7 6 Tactical Retreats 7 | . . . . . 3 . 1 . . . 3 Traps | -11 -10 -10 -10 -9 -8 -7 -7 -7 -7 -7 -7 ------- Run | Yrd Mat Min Exi Min Mat Fac Gar Fac Low Low Zio Traps Triggered 2 | . . . . . . . 2 . . . . Indirectly . | . . . . . . . . . . . . Trap Hack Attempts . | . . . . . . . . . . . . Triggered . | . . . . . . . . . . . . Disarmed . | . . . . . . . . . . . . Reprogrammed . | . . . . . . . . . . . . Reused . | . . . . . . . . . . . . Traps Extracted . | . . . . . . . . . . . . Installed . | . . . . . . . . . . . . Triggered . | . . . . . . . . . . . . Machines | -11 -10 -10 -10 -9 -8 -7 -7 -7 -7 -7 -7 ---------- Run | Yrd Mat Min Exi Min Mat Fac Gar Fac Low Low Zio Machines Disabled 5 | . . . . . 2 . 1 . . . 2 Max in Single Turn 1 | . . . . . 1 . 1 . . . 1 Garrison Relay 1 | . . . . . . . 1 . . . . Machines Repaired . | . . . . . . . . . . . . Machines Dismantled . | . . . . . . . . . . . . Machines Sabotaged . | . . . . . . . . . . . . Overloaded Fab Kills . | . . . . . . . . . . . . Hacking | -11 -10 -10 -10 -9 -8 -7 -7 -7 -7 -7 -7 --------- Run | Yrd Mat Min Exi Min Mat Fac Gar Fac Low Low Zio Machines Accessed 4 | . . . 3 . . 1 . . . . . Terminals . | . . . . . . . . . . . . Fabricators . | . . . . . . . . . . . . Repair Stations . | . . . . . . . . . . . . Recycling Units . | . . . . . . . . . . . . Scanalyzers . | . . . . . . . . . . . . Garrison Access 1 | . . . . . . 1 . . . . . Total Hacks 6 | . . . 3 . . 3 . . . . . Successful 4 | . . . 3 . . 1 . . . . . Failed 2 | . . . . . . 2 . . . . . Catastrophic . | . . . . . . . . . . . . Database Lockouts . | . . . . . . . . . . . . Manual 1 | . . . 1 . . . . . . . . Terminals . | . . . . . . . . . . . . Fabricators . | . . . . . . . . . . . . Repair Stations . | . . . . . . . . . . . . Recycling Units . | . . . . . . . . . . . . Scanalyzers . | . . . . . . . . . . . . Garrison Access 3 | . . . . . . 3 . . . . . Terminal Hacks 3 | . . . 3 . . . . . . . . Record 2 | . . . 2 . . . . . . . . Proto ID Catalog 1 | . . . 1 . . . . . . . . Fabricator Hacks . | . . . . . . . . . . . . Repair Station Hacks . | . . . . . . . . . . . . Recycling Unit Hacks . | . . . . . . . . . . . . Scanalyzer . | . . . . . . . . . . . . Garrison Access Hacks 1 | . . . . . . 1 . . . . . Unlock Access 1 | . . . . . . 1 . . . . . Unauthorized Hacks . | . . . . . . . . . . . . Terminals . | . . . . . . . . . . . . Fabricators . | . . . . . . . . . . . . Repair Stations . | . . . . . . . . . . . . Recycling Units . | . . . . . . . . . . . . Scanalyzers . | . . . . . . . . . . . . Garrison Access . | . . . . . . . . . . . . Data Cores Recovered . | . . . . . . . . . . . . Used . | . . . . . . . . . . . . Hacking Detections 1 | . . . . . . 1 . . . . . Full Trace Events 1 | . . . . . . 1 . . . . . Feedback Events . | . . . . . . . . . . . . Feedback Blocked . | . . . . . . . . . . . . Robot Schematics Acquired . | . . . . . . . . . . . . Robots Built . | . . . . . . . . . . . . Authchips . | . . . . . . . . . . . . Time . | . . . . . . . . . . . . Total Robot Build Rating . | . . . . . . . . . . . . Part Schematics Acquired . | . . . . . . . . . . . . Parts Built . | . . . . . . . . . . . . Authchips . | . . . . . . . . . . . . Time . | . . . . . . . . . . . . Total Part Build Rating . | . . . . . . . . . . . . Part Studies Acquired . | . . . . . . . . . . . . Parts Repaired . | . . . . . . . . . . . . Time . | . . . . . . . . . . . . Parts Recycled . | . . . . . . . . . . . . Recycled Matter . | . . . . . . . . . . . . Retrieved Matter . | . . . . . . . . . . . . Retrieved Components . | . . . . . . . . . . . . Parts Scanalyzed . | . . . . . . . . . . . . Part Schematics Acquired . | . . . . . . . . . . . . Parts Damaged . | . . . . . . . . . . . . Bothacking | -11 -10 -10 -10 -9 -8 -7 -7 -7 -7 -7 -7 ------------ Run | Yrd Mat Min Exi Min Mat Fac Gar Fac Low Low Zio Used RIF Installer 1 | . . . . . . . 1 . . . . Robots Hacked . | . . . . . . . . . . . . Non-combat . | . . . . . . . . . . . . Combat . | . . . . . . . . . . . . Robot Hacks Applied . | . . . . . . . . . . . . Relay Couplers Released 3 | . . . . . . . 3 . . . . Machine Destruction 3 | . . . . . . . 3 . . . . Fabnet Peak Effective % . | . . . . . . . . . . . . Robots Rewired 8 | . . . . . . . 6 . . 2 . Allies Hacked . | . . . . . . . . . . . . Hacks Repelled . | . . . . . . . . . . . . Allies | -11 -10 -10 -10 -9 -8 -7 -7 -7 -7 -7 -7 -------- Run | Yrd Mat Min Exi Min Mat Fac Gar Fac Low Low Zio Total Allies 12 | . . . . 4 . . 6 . . 2 . Largest Group 4 | . . . . 4 3 . 4 1 1 2 2 Highest-Rated Group 113 | . . . . 71 40 . 113 21 21 32 32 Highest-Rated Ally 34 | . . . . 31 16 . 34 21 21 21 16 Total Orders . | . . . . . . . . . . . . Ally Attacks 135 | . . . . 10 14 . 28 7 9 1 66 Total Damage 1966 | . . . . 146 139 . 687 138 192 11 653 Kills 23 | . . . . 3 . . 7 2 1 . 10 Allies Corrupted . | . . . . . . . . . . . . Allies Melted . | . . . . . . . . . . . . Intel | -11 -10 -10 -10 -9 -8 -7 -7 -7 -7 -7 -7 ------- Run | Yrd Mat Min Exi Min Mat Fac Gar Fac Low Low Zio Active Infowar (turns) . | . . . . . . . . . . . . Robot Analysis Total . | . . . . . . . . . . . . Derelict Logs Recovered 3 | . . . . 2 . . . . 1 . . Drone Launches . | . . . . . . . . . . . . Drone Recoveries . | . . . . . . . . . . . . Exploration | -11 -10 -10 -10 -9 -8 -7 -7 -7 -7 -7 -7 ------------- Run | Yrd Mat Min Exi Min Mat Fac Gar Fac Low Low Zio Turns Passed 6381 | 80 123 33 349 652 816 52 1789 247 415 937 888 Spaces Moved 3347 | 46 55 28 288 460 296 38 863 183 370 431 289 Core 164 | 27 . . . . . . 4 . . 75 58 Treads 506 | . . . . . . . 275 . . . 231 Legs 1121 | 19 55 28 288 460 271 . . . . . . Wheels 1312 | . . . . . 25 38 340 183 370 356 . Hover . | . . . . . . . . . . . . Flight 244 | . . . . . . . 244 . . . . Fastest Speed 50 | 50 120 120 120 120 120 125 100 100 100 100 100 Average Speed 152 | 150 120 120 120 120 184 125 161 100 100 187 241 Slowest Speed 650 | 250 120 120 120 120 330 125 650 100 100 600 600 Overloaded Moves . | . . . . . . . . . . . . Propulsion Burnouts . | . . . . . . . . . . . . Robots Hopped . | . . . . . . . . . . . . Potential Cave-ins 5 | . . . . 5 . . . . . . . Cave-ins Triggered . | . . . . . . . . . . . . Exploration Rate (%) 35 | 4 17 13 62 63 30 1 64 8 60 71 29 Regions Visited 11 Branch Regions 6 Pre-discovered Areas . | . . . . . . . . . . . . Known Exits Taken 2 | . . . . 1 . 1 . . . . . Unknown Exits Taken 8 | 1 1 1 1 . 1 . . 1 1 1 . Scrap Searched 9 | . . . . 3 . . . . 4 2 . Spaces Dug 3 | . . . . 3 . . . . . . . Terrain Destroyed 108 | . . . . 13 3 . 2 . 21 59 10 Melee . | . . . . . . . . . . . . Projectile 29 | . . . . 13 3 . 2 . . 1 10 AOE 79 | . . . . . . . . . 21 58 . Terrain Rammed . | . . . . . . . . . . . . Walls Destroyed . | . . . . . . . . . . . . Machines Disabled . | . . . . . . . . . . . . Actions | -11 -10 -10 -10 -9 -8 -7 -7 -7 -7 -7 -7 --------- Run | Yrd Mat Min Exi Min Mat Fac Gar Fac Low Low Zio Total 4033 | 53 89 27 292 518 436 42 1076 214 389 509 388 Wait 173 | . 23 . . 16 52 . 49 5 1 11 16 Move 3337 | 45 54 27 287 459 295 38 862 182 369 430 289 Hop . | . . . . . . . . . . . . Pick Up 31 | 1 . . 3 4 4 3 4 2 3 3 4 Fast Attach 44 | 6 1 . . . 11 1 15 . . . 10 Attach 25 | . . . . . 6 . 10 . 1 2 6 Detach 13 | . . . . . 3 . 8 . . . 2 Swap 35 | . . . . 5 2 . 9 5 2 6 6 Drop 15 | . . . 2 2 2 . . 5 . 2 2 Fire 276 | . 11 . . 32 60 . 57 15 13 35 53 Melee 27 | . . . . . . . 27 . . . . Ram . | . . . . . . . . . . . . Kick 2 | 1 . . . . 1 . . . . . . Crush . | . . . . . . . . . . . . Escape Stasis 8 | . . . . . . . 8 . . . . Rewire 47 | . . . . . . . 27 . . 20 . Trap . | . . . . . . . . . . . . Miscellaneous . | . . . . . . . . . . . . Route ------- -11/Scrapyard -10/Materials -10/Mines -10/Exiles -9/Mines (discovered 2 exits: *Mat x2) -8/Materials -7/Factory -7/Garrison (discovered 2 exits: [*Fac x2]) -7/Factory -7/Lower Caves -7/Lower Caves -7/Zion History --------- Turn | Location | Event 41 | -11/Scrapyard | Discovered new exit (range 16) 81 | -11/Scrapyard | Entered Materials 194 | -10/Materials | Discovered new exit (range 8) 204 | -10/Materials | Entered Mines 232 | -10/Mines | Deemed a non-threat by the Exiles lab entrance 232 | -10/Mines | Discovered new exit (range 5) 237 | -10/Mines | Entered Exiles 270 | -10/Exiles | Met 8R-AWN 289 | -10/Exiles | Met EX-HEX 315 | -10/Exiles | Build established: Mutant 323 | -10/Exiles | Met EX-BIN 339 | -10/Exiles | Aligned with FarCom system 341 | -10/Exiles | Given EX-Vault access code 380 | -10/Exiles | Opened EX-Vault 443 | -10/Exiles | Found AWS/Gauss 451 | -10/Exiles | Found XL Autogun Array 490 | -10/Exiles | Warned to stay clear of 0b10 Research branches 525 | -10/Exiles | Met EX-DEC 569 | -10/Exiles | Discovered new exit (range 10) 586 | -10/Exiles | Left Exiles lab with AWS/Gauss 586 | -10/Exiles | Entered Mines 645 | -9/Mines | Found a Scrap Suit stashed away for nefarious purposes 647 | -9/Mines | Found Scrap Suit 658 | -9/Mines | Received a Mining Laser from a helpful Derelict 900 | -9/Mines | Identified exit to Materials 910 | -9/Mines | Assisted by bots powering up and referring to "LRC-V3" 927 | -9/Mines | Learned Materials emergency access door positions 1166 | -9/Mines | Discovered exit to Materials (range 8) 1238 | -9/Mines | Entered Materials 1238 | -8/Materials | Accompanied by 3 allies 1238 | -8/Materials | Evolved 4 slots: Propulsion x1, Utility x2, Weapon x1 1421 | -8/Materials | Lost 3 allies 1673 | -8/Materials | Lost 4 parts (1p1n2w) 1965 | -8/Materials | Build established: Scavenger-Skirmisher 2041 | -8/Materials | Lost 3 parts (2n1w) 2046 | -8/Materials | Discovered new exit (range 7) 2054 | -8/Materials | Entered Factory 2054 | -7/Factory | Evolved 2 slots: Propulsion x1, Utility x1 2106 | -7/Factory | Identified exit to Garrison 2106 | -7/Factory | Entered Garrison 2186 | -7/Garrison | Lost 6 parts (2p2n2u) 2242 | -7/Garrison | Triggered checkpoint 2267 | -7/Garrison | Garrison Relay disabled 2342 | -7/Garrison | Installed Relay Interface Framework 2416 | -7/Garrison | Triggered checkpoint 2419 | -7/Garrison | Triggered checkpoint 2484 | -7/Garrison | Triggered checkpoint 2752 | -7/Garrison | Triggered checkpoint 2853 | -7/Garrison | Discovered new exit (range 15) 2994 | -7/Garrison | Core integrity fell below 50% 3036 | -7/Garrison | Lost 7 parts (1p1n4u1w) 3037 | -7/Garrison | Destroyed 7 combat bots 3250 | -7/Garrison | Triggered checkpoint 3542 | -7/Garrison | Triggered checkpoint 3617 | -7/Garrison | Discovered new exit (range 9) 3895 | -7/Garrison | Entered Factory 3895 | -7/Factory | Accompanied by 1 ally 4123 | -7/Factory | Discovered new exit (range 9) 4142 | -7/Factory | Entered Lower Caves 4142 | -7/Lower Caves | Accompanied by 1 ally 4196 | -7/Lower Caves | Learned 4 Factory zone layouts 4422 | -7/Lower Caves | Build established: Gunner 4526 | -7/Lower Caves | Discovered new exit (range 11) 4557 | -7/Lower Caves | Entered another Lower Caves area 4557 | -7/Lower Caves | Accompanied by 1 ally 4706 | -7/Lower Caves | Spotted B-75 Beast 4732 | -7/Lower Caves | Destroyed B-75 Beast 4910 | -7/Lower Caves | Encountered a Warlord checkpoint 4996 | -7/Lower Caves | Attracted the attention of an 0b10 outpost 5026 | -7/Lower Caves | System corruption reached 10% 5056 | -7/Lower Caves | Lost 7 parts (1p2n2u2w) 5428 | -7/Lower Caves | Discovered new exit (range 11) 5494 | -7/Lower Caves | Entered Zion 5494 | -7/Zion | Accompanied by 2 allies 5626 | -7/Zion | Received a hallucinogenic algorithm 5783 | -7/Zion | System corruption cleaned by Quarantine Array 5807 | -7/Zion | RIF detected upon attempting to enter Zion 5807 | -7/Zion | Attacked by Zionites 5807 | -7/Zion | Spotted 5G-9Q2(B) 5807 | -7/Zion | Spotted Y3-KYI(B) 5816 | -7/Zion | Allies destroyed 5G-9Q2(B) 5821 | -7/Zion | Allies destroyed Y3-KYI(B) 5907 | -7/Zion | NK-0LA came to Zion's defense 5924 | -7/Zion | Core integrity fell below 20% 5924 | -7/Zion | Destroyed NK-0LA 5975 | -7/Zion | Destroyed Imprinter 6003 | -7/Zion | Extracted access codes from Imprinter's data core 6074 | -7/Zion | AWS/Gauss suddenly broke down 6237 | -7/Zion | Build established: Scavenger-Gunner 6340 | -7/Zion | Lost 4 parts (1p1n2w) 6382 | -7/Zion | Destroyed by SF-B5V(z) with Makeshift Hammer Last Messages --------------- J5-IAC(z) bursts out of the Twisted Machinery. 06342_ J5-IAC(z) destroyed. YC-93L(z) bursts out of the Twisted Machinery. 06345_ YC-93L(z) pulls a Mak. Hammer out of the Twisted Machinery. 06346_ YC-93L(z) suffers critical hit (Burn). 06346_ YC-93L(z) destroyed. BV-1D5(z) bursts out of the Twisted Machinery. 06349_ BV-1D5(z) destroyed. 06355_ Acquired Mak. Power Source. IN-79P(z) bursts out of the Twisted Machinery. 06370_ IN-79P(z) pulls a Mak. Shrapnel Gun out of the Twisted Machinery. SF-B5V(z) bursts out of the Twisted Machinery. 06379_ SF-B5V(z) suffers critical hit (Burn). 06380_ Mak. Power Source destroyed. 06380_ System corrupted by crushing effect (+3). XC-8SL(z) bursts out of the Twisted Machinery. 06381_ Pulse Rifle destroyed. 06381_ Beamcaster destroyed. Map ----- +----------------------------------------------------+ | ?????????????????????????????????????????????????? | | ?????????????????????????????????????????????????? | | ?????????????????????????????????????????????????? | | ?????????????????????????????????????????????????# | | ?????????????????????????????????????????????????# | | ?????????????????????????????????????????????????# | | ?????????????????????????????????????????????????# | | ?????????????????????????????????????????????????# | | ?????????????????????????????????????????????????# | | ?????????????????????????????????????####??#####?# | | ????????????????????????????????????"#"""###"""### | | ???????????????????????????????????""""""""""""""" | | ??????????????????????????? "" "" "" | | ??????????????? ????????"? % | | ?????????????" ???????" = ==[ | | ????????????? ??????? /!% | | ???????????? ??????? ""#" """""#""" = | | ????????????? ??????" """" " """""" "" | | ????????????? ""###""" """"" "" | | ?????????????? M"""#""""" """" "" | | ???????????????? """"#""""""""" "" """" | | ?????????????????? """#"""" "" "" %""" | | ?????????????## ???# ""#"""/%=%/ %% " | | ?????????????# # "##"" * /= "" | | ????????????????"" z #"" %"" %= "" | | ????????????????"" """ @z"#" =""" =%" "" | | ????????????????"" """ zz"#" #""" """ " | | ??????????????? # #"" """" """#" """ | | ???????????????????# """ " """#" """"""" | | ???????????????? "" """"" """#"""" | | ????????????????" "" """"" ""####" | | ?????????????????" """" ""#??#"""" | | ??????????????????"""#""" """""""##???"""""" | | ???????????????????"####""""""""""""##"#?????"##"" | | ???????????????????????#"""#""""##"##?#?????????"? | | ???????????????????????##########?##?????????????? | | ?????????????????????????????????????????????????? | | ?????????????????????????????????????????????????? | | ?????????????????????????????????????????????????? | | ?????????????????????????????????????????????????? | | ?????????????????????????????????????????????????? | | ?????????????????????????????????????????????????? | | ?????????????????????????????????????????????????? | | ?????????????????????????????????????????????????? | | ?????????????????????????????????????????????????? | | ?????????????????????????????????????????????????? | | ?????????????????????????????????????????????????? | | ?????????????????????????????????????????????????? | | ?????????????????????????????????????????????????? | | ?????????????????????????????????????????????????? | +----------------------------------------------------+ Best States ------------- Heat Dissipation 62 Coolant Potential 50 Energy Generation 18 Energy Capacity 1490 Matter Stores 300 Matter Capacity 300 Sight Range 16 Terrain Scan Density 10 Core Shielding 30 Weapon Shielding 66 Evasion (%) 55 Core Analysis 9 Recoil Reduction 3 Item Schematics ----------------- None Robot Schematics ------------------ None Fabricated ------------ Nothing Repaired ---------- Nothing Studied --------- None Alien Tech Used ----------------- None Achievements -------------- Drive-By Monster Challenges ------------ None Game ------ Seed ElectronDiametricGriptreads Manual? 0 Play Time 00:36:45 Cumulative 196.9 hours Start 2026.04.20 @ 21:15:58 End 2026.04.20 @ 21:51:47 Sessions 1 Manual Loads 0 Difficulty Rogue Special Mode None Game No. 327 Rogue 327 Adventurer 0 Explorer 0 Win Type - Total 2 Types 2/0/0/0/0/0/0/0/0/0 Lore% 61 Gallery% 60 Achievement% 46 Wizard Run 0 Options --------- Layout 2 ASCII 0 Keyboard 1 Movement Numpad Keybinds 0 Fullscreen 1 Font 20/SmallcapsGlow Map View 64x51 Zoom Use 0% Tactical HUD 1 Map Filters NONE Filters NONE Steam 1 RUN: b9aec70e-79d4-4fc8-8836-4a389740db02